bitfinex/quotes_SOLUSD_20250802
["timestamp","ask_amount","ask_price","bid_price","bid_amount"]
[1754132369090,10.96471667,163.29,163.28,5.4964012]
[1754132369277,6.83180964,163.29,163.28,5.4964012]
[1754132369709,6.83501964,163.29,163.28,5.4964012]
[1754132370010,6.83501964,163.29,163.28,0.06]
[1754132370398,6.83481699,163.29,163.28,0.06]
[1754132370605,10.96634999,163.29,163.28,0.06]
[1754132370792,16.40275119,163.29,163.28,0.06]
[1754132375829,10.96634999,163.29,163.28,0.06]
[1754132376313,53.88169252,163.29,163.28,0.06]
[1754132381732,53.17169252,163.29,163.28,0.06]
[1754132382030,49.04015952,163.29,163.28,5.4964012]
[1754132382232,49.74015952,163.29,163.28,0.06]
[1754132383708,49.04015952,163.29,163.28,0.06]
[1754132383913,49.04015952,163.29,163.28,5.4964012]
[1754132388135,49.0359859,163.29,163.28,5.4964012]
[1754132390608,6.1159859,163.29,163.28,11.5928024]
[1754132390812,0.00100689,163.3,163.28,11.5928024]
[1754132391008,0.00100689,163.3,163.29,6.0964012]
[1754132400636,0.00100689,163.3,163.29,5.4364012]
[1754132402162,0.00100689,163.3,163.29,6.0964012]
[1754132402727,0.00100689,163.3,163.29,5.4364012]
[1754132402935,0.70100689,163.3,163.29,5.4364012]
[1754132403340,5.28153418,163.3,163.28,5.4964012]
[1754132403560,0.00100689,163.3,163.29,5.4364012]
[1754132403938,4.58172324,163.3,163.29,5.4364012]
[1754132404178,0.70100689,163.3,163.29,5.4364012]
[1754132404369,5.28172324,163.3,163.29,5.4364012]
[1754132405043,5.28197939,163.3,163.29,5.4364012]
[1754132405745,5.28197939,163.3,163.28,0.06]
[1754132405961,0.00100689,163.3,163.29,5.4364012]
[1754132406337,4.58224558,163.3,163.29,5.4364012]
[1754132406565,5.28224558,163.3,163.29,5.4364012]
[1754132406860,48.18224558,163.3,163.29,5.4364012]
[1754132411791,42.90100689,163.3,163.29,5.4364012]
[1754132412086,43.60100689,163.3,163.29,5.4364012]
[1754132413373,42.90100689,163.3,163.29,5.4364012]
[1754132416884,0.00100689,163.3,163.29,5.4364012]
[1754132418789,0.00100689,163.3,163.29,6.0964012]
[1754132419670,0.03,163.32,163.31,5.4364012]
[1754132419994,0.03,163.32,163.31,6.0964012]
[1754132420706,0.03,163.32,163.31,5.4364012]
[1754132421870,0.73,163.32,163.31,5.4364012]
[1754132423414,5.31158459,163.32,163.31,5.4364012]
[1754132424008,6.84537526,163.32,163.31,5.4364012]
[1754132424683,4.61158459,163.32,163.31,5.4364012]
[1754132424886,0.03,163.32,163.31,5.4364012]
[1754132425697,0.03,163.32,163.31,6.0964012]
[1754132426316,0.03,163.32,163.31,5.4364012]
[1754132427422,0.73,163.32,163.31,5.4364012]
[1754132427599,0.03,163.32,163.31,5.4364012]
[1754132429416,4.61580259,163.32,163.31,5.4364012]
[1754132429916,4.61579483,163.32,163.31,5.4364012]
[1754132430831,5.29579483,163.32,163.31,5.4364012]
[1754132431031,6.82946036,163.32,163.31,5.4364012]
[1754132431198,6.82946036,163.32,163.3,5.4364012]
[1754132431404,6.11946036,163.31,163.3,5.4364012]
[1754132431728,6.79946036,163.31,163.3,5.4364012]
[1754132435019,6.80451861,163.31,163.3,5.4364012]
[1754132437636,6.12451861,163.31,163.3,5.4364012]
[1754132438139,6.12560082,163.31,163.3,6.1364012]
[1754132438751,4.59174793,163.31,163.3,6.1364012]
[1754132440353,0.03,163.32,163.3,6.1364012]
[1754132440536,0.03,163.32,163.31,6.1364012]
[1754132440848,6.15484428,163.32,163.31,6.1364012]
[1754132441841,0.03,163.32,163.31,6.1364012]
[1754132442348,42.88,163.34,163.31,6.1364012]
[1754132442555,0.03,163.35,163.33,10.8728024]
[1754132442732,0.03,163.37,163.34,10.8728024]
[1754132442938,1.53337138,163.36,163.35,0.7]
[1754132443232,0.03,163.37,163.35,0.7]
[1754132444052,0.03,163.37,163.36,10.8728024]
[1754132444427,0.03,163.37,163.36,11.5728024]
[1754132444732,0.71,163.37,163.36,5.4364012]
[1754132445150,0.71,163.37,163.32,26.0]
[1754132445346,42.88,163.36,163.35,5.4364012]
[1754132445651,43.56,163.36,163.35,5.4364012]
[1754132447755,42.88,163.36,163.35,5.4364012]
[1754132449164,0.03,163.37,163.35,10.8728024]
[1754132449339,0.03,163.37,163.36,10.8728024]
[1754132449534,0.71,163.37,163.36,5.4364012]
[1754132449734,0.03,163.37,163.36,5.4364012]
[1754132451427,0.03,163.37,163.36,10.8728024]
[1754132452948,0.03,163.37,163.36,11.5728024]
[1754132454171,0.03,163.37,163.36,10.8728024]
[1754132454970,0.71,163.37,163.36,5.4364012]
[1754132456064,5.28928713,163.37,163.33,26.0]
[1754132456263,5.28928713,163.37,163.36,5.4364012]
[1754132456264,0.03,163.37,163.36,5.4364012]
[1754132456457,4.60934354,163.37,163.36,5.4364012]
[1754132456870,5.28934354,163.37,163.36,5.4364012]
[1754132458478,4.60934354,163.37,163.36,5.4364012]
[1754132458691,0.03,163.37,163.36,10.8728024]
[1754132459862,0.03,163.37,163.36,11.5728024]
[1754132460704,0.03,163.37,163.36,10.8728024]
[1754132460871,0.7,163.37,163.36,10.8728024]
[1754132461071,0.7,163.37,163.36,5.4364012]
[1754132461273,0.7,163.37,163.36,10.8728024]
[1754132461475,0.03,163.37,163.36,10.8728024]
[1754132463578,0.7,163.37,163.36,10.8728024]
[1754132464193,0.03,163.37,163.36,10.8728024]
[1754132464384,0.7,163.37,163.36,10.8728024]
[1754132466084,0.03,163.37,163.36,10.8728024]
[1754132468489,0.7,163.37,163.36,10.8728024]
[1754132469183,5.27744592,163.37,163.36,5.4364012]
[1754132469682,0.7,163.37,163.36,5.4364012]
[1754132470087,5.27781943,163.37,163.36,5.4364012]
[1754132475018,0.03,163.37,163.36,5.4364012]
[1754132475387,0.03,163.37,163.36,11.5528024]
[1754132476285,0.03,163.37,163.36,10.8728024]
[1754132476497,0.03,163.37,163.36,11.5528024]
[1754132478286,0.03,163.37,163.36,10.8728024]
[1754132480702,0.03,163.37,163.36,11.5528024]
[1754132481714,0.03,163.37,163.36,10.8728024]
[1754132482086,0.03,163.37,163.36,11.5528024]
[1754132485522,0.03,163.38,163.36,14.0058124]
[1754132485818,0.03,163.38,163.37,6.1164012]
[1754132486626,0.03,163.38,163.37,5.4364012]
[1754132487128,5.28879403,163.38,163.37,5.4364012]
[1754132488812,5.28879403,163.38,163.34,0.06]
[1754132488813,5.28879403,163.38,163.36,5.4364012]
[1754132489009,5.28879403,163.38,163.34,0.06]
[1754132489010,59.95991041,163.37,163.34,0.06]
[1754132489211,11.01350921,163.36,163.34,0.06]
[1754132489415,11.01350921,163.35,163.34,0.06]
[1754132489600,11.68350921,163.35,163.34,0.06]
[1754132489811,11.01350921,163.35,163.34,0.06]
[1754132490027,11.68350921,163.35,163.34,0.06]
[1754132490740,17.11991041,163.35,163.34,0.06]
[1754132491731,11.68350921,163.35,163.34,0.06]
[1754132492551,17.11991041,163.35,163.34,0.06]
[1754132492907,33.90459438,163.35,163.34,0.06]
[1754132493113,59.90459438,163.35,163.34,0.06]
[1754132493316,54.46819318,163.35,163.34,0.06]
[1754132493536,37.68350921,163.35,163.34,0.06]
[1754132494434,33.55382055,163.35,163.34,0.06]
[1754132494637,5.25879403,163.35,163.34,5.4964012]
[1754132496543,4.58879403,163.35,163.34,5.4964012]
[1754132498315,5.27879403,163.35,163.34,5.4964012]
[1754132499344,4.58049396,163.35,163.34,5.4964012]
[1754132500831,4.58049396,163.35,163.34,6.1964012]
[1754132501818,42.84,163.37,163.34,6.1964012]
[1754132501819,4.58049396,163.36,163.34,6.1964012]
[1754132502121,42.84,163.37,163.35,5.4364012]
[1754132502342,42.84,163.37,163.36,5.4364012]
[1754132502531,47.41973275,163.37,163.36,5.4364012]
[1754132503044,47.41973275,163.37,163.36,11.5728024]
[1754132503351,4.57973275,163.37,163.36,11.5728024]
[1754132504318,4.57922274,163.37,163.36,11.5728024]
[1754132505434,0.03,163.38,163.36,11.5728024]
[1754132505755,0.03,163.38,163.37,5.4364012]
[1754132506051,4.60951742,163.38,163.37,5.4364012]
[1754132506252,5.29951742,163.38,163.37,5.4364012]
[1754132506547,5.29951742,163.38,163.35,5.4364012]
[1754132506732,48.10951742,163.37,163.35,5.4364012]
[1754132506929,0.69,163.36,163.34,5.4964012]
[1754132507552,0.69,163.36,163.34,0.06]
[1754132508053,4.58037551,163.35,163.34,0.06]
[1754132508443,5.27037551,163.35,163.34,0.06]
[1754132508958,5.27037551,163.35,163.34,5.4964012]
[1754132510668,4.58037551,163.35,163.34,5.4964012]
[1754132511254,5.27037551,163.35,163.34,5.4964012]
[1754132512768,4.58037551,163.35,163.34,5.4964012]
[1754132513449,4.58037551,163.36,163.34,5.4964012]
[1754132513647,4.58037551,163.35,163.34,0.06]
[1754132513842,5.27037551,163.36,163.34,0.06]
[1754132514045,4.58037551,163.35,163.34,0.06]
[1754132514361,4.58037551,163.36,163.34,0.06]
[1754132514560,4.58037551,163.35,163.34,0.06]
[1754132514748,4.58037551,163.35,163.34,5.4964012]
[1754132515870,5.27037551,163.35,163.34,5.4964012]
[1754132516036,4.58037551,163.35,163.34,5.4964012]
[1754132516460,5.27037551,163.35,163.34,5.4964012]
[1754132517363,4.58037551,163.35,163.34,5.4964012]
[1754132517567,4.58037551,163.36,163.34,5.4964012]
[1754132517780,0.69,163.36,163.35,5.4364012]
[1754132517936,4.57984153,163.36,163.35,5.4364012]
[1754132521991,0.03,163.38,163.35,11.5528024]
[1754132522177,4.57932676,163.37,163.36,5.4364012]
[1754132523187,4.57932676,163.37,163.36,6.1164012]
[1754132523482,4.57932676,163.37,163.36,10.8728024]
[1754132524054,4.57932676,163.37,163.36,5.4364012]
[1754132524868,5.25932676,163.37,163.36,5.4364012]
[1754132526561,4.57932676,163.37,163.36,5.4364012]
[1754132526756,4.57932676,163.37,163.36,6.1164012]
[1754132526956,0.03,163.38,163.36,11.5528024]
[1754132527173,0.03,163.38,163.37,6.1164012]
[1754132527658,0.03,163.39,163.37,22.90108517]
[1754132527882,0.03,163.4,163.38,5.4364012]
[1754132528066,0.03,163.41,163.39,5.4364012]
[1754132528280,0.03,163.41,163.4,31.4364012]
[1754132528601,0.03,163.41,163.4,32.1164012]
[1754132529674,0.03,163.43,163.42,5.4364012]
[1754132530003,0.03,163.43,163.42,10.8728024]
[1754132530308,0.03,163.43,163.42,11.5528024]
[1754132530519,0.03,163.43,163.41,26.0]
[1754132530673,0.71,163.43,163.42,5.4364012]
[1754132530875,0.03,163.43,163.42,5.4364012]
[1754132531804,0.03,163.43,163.42,6.1164012]
[1754132532275,0.03,163.43,163.42,11.5528024]
[1754132533592,0.03,163.43,163.42,5.4364012]
[1754132536009,0.03,163.43,163.42,10.8728024]
[1754132536392,0.03,163.43,163.42,11.5528024]
[1754132537493,0.03,163.45,163.42,11.5528024]
[1754132537807,0.03,163.45,163.44,10.8728024]
[1754132540404,0.71,163.45,163.44,5.4364012]
[1754132540791,0.03,163.45,163.44,10.8728024]
[1754132543730,0.03,163.45,163.44,11.5528024]
[1754132544318,0.03,163.45,163.44,10.8728024]
[1754132544515,0.71,163.45,163.44,10.8728024]
[1754132545120,0.71,163.45,163.44,5.4364012]
[1754132546709,0.03,163.45,163.44,10.8728024]
[1754132547111,0.03,163.45,163.44,5.4364012]
[1754132547112,0.71,163.45,163.44,5.4364012]
[1754132550338,43.51,163.45,163.44,5.4364012]
[1754132552208,43.51,163.45,163.43,5.4364012]
[1754132552450,0.67,163.44,163.36,95.32307347]
[1754132552614,10.66490508,163.44,163.4,5.4364012]
[1754132552938,0.67,163.43,163.4,5.4364012]
[1754132553107,6.1064012,163.43,163.39,5.4364012]
[1754132553329,0.67,163.42,163.39,5.4364012]
[1754132553554,42.8,163.41,163.39,5.4364012]
[1754132553854,0.67,163.4,163.39,5.4364012]
[1754132555338,0.67,163.4,163.36,89.88667227]
[1754132555339,0.67,163.4,163.38,5.4364012]
[1754132555755,0.67,163.4,163.37,5.4364012]
[1754132556359,0.67,163.4,163.36,95.32307347]
[1754132556533,6.1064012,163.4,163.36,89.88667227]
[1754132556730,26.0,163.37,163.36,89.88667227]
[1754132556936,74.9064012,163.37,163.36,89.88667227]
[1754132557142,91.69108517,163.37,163.36,89.88667227]
[1754132557344,96.25436511,163.37,163.36,89.88667227]
[1754132557928,102.64521462,163.37,163.35,0.06]
[1754132558135,10.66968114,163.36,163.35,0.06]
[1754132559149,27.45436511,163.36,163.35,0.06]
[1754132559450,33.84216403,163.36,163.35,0.06]
[1754132560839,39.27856523,163.36,163.35,0.06]
[1754132561233,42.33989554,163.36,163.35,0.06]
[1754132564386,36.90349434,163.36,163.35,0.06]
[1754132564678,33.84216403,163.36,163.35,0.06]
[1754132564843,29.73603923,163.36,163.35,0.06]
[1754132565044,33.83372525,163.36,163.35,0.06]
[1754132565355,29.7303766,163.36,163.35,0.06]
[1754132565552,32.92617752,163.36,163.35,0.06]
[1754132565757,30.65016603,163.36,163.35,0.06]
[1754132568748,30.63436654,163.36,163.35,0.06]
[1754132570271,24.52796534,163.36,163.35,0.06]
[1754132570448,7.74328137,163.36,163.35,0.06]
[1754132570643,9.30220212,163.36,163.35,0.06]
[1754132570846,13.84656926,163.36,163.35,0.06]
[1754132571951,30.63125323,163.36,163.35,0.06]
[1754132574474,25.19485203,163.36,163.35,0.06]
[1754132574782,30.63125323,163.36,163.35,0.06]
[1754132575478,176.73125323,163.36,163.35,0.06]
[1754132576672,202.73125323,163.36,163.35,0.06]
[1754132577060,179.84016806,163.36,163.35,0.06]
[1754132577270,149.29580092,163.36,163.35,0.75]
[1754132578478,3.19580092,163.36,163.35,6.1864012]
[1754132578686,42.8,163.37,163.35,6.1864012]
[1754132581597,42.8,163.37,163.36,6.1164012]
[1754132581989,3.19476557,163.38,163.36,6.1164012]
[1754132582297,42.82,163.37,163.36,0.68]
[1754132583376,42.82,163.37,163.36,6.1164012]
[1754132583798,42.82,163.37,163.36,0.68]
[1754132584103,42.82,163.37,163.36,6.1164012]
[1754132587222,42.82,163.37,163.36,5.4364012]
[1754132589730,42.82,163.37,163.36,6.1164012]
[1754132589930,42.82,163.37,163.36,11.5528024]
[1754132590299,42.82,163.39,163.36,11.5528024]
[1754132590501,42.82,163.39,163.38,5.4364012]
[1754132590808,47.37524857,163.39,163.38,6.1164012]
[1754132591221,47.37694636,163.39,163.38,6.1164012]
[1754132592940,48.06694636,163.39,163.38,5.4364012]
[1754132595421,47.37694636,163.39,163.38,5.4364012]
[1754132601036,50.35418412,163.39,163.38,5.4364012]
[1754132603340,47.37694636,163.39,163.38,5.4364012]
[1754132603919,48.06694636,163.39,163.38,5.4364012]
[1754132604835,47.37694636,163.39,163.38,5.4364012]
[1754132605221,47.37694636,163.39,163.36,0.68]
[1754132605420,4.55694636,163.38,163.36,0.68]
[1754132605808,4.55694636,163.38,163.37,0.68]
[1754132606622,4.55694636,163.38,163.37,6.1164012]
[1754132606833,42.8,163.4,163.37,6.1164012]
[1754132607030,4.57402334,163.39,163.38,0.68]
[1754132607321,4.57402334,163.39,163.38,5.4364012]
[1754132607524,4.57402334,163.4,163.38,5.4364012]
[1754132607724,42.8,163.41,163.39,0.68]
[1754132608047,4.57396236,163.4,163.39,0.68]
[1754132608227,4.57396236,163.4,163.39,6.1164012]
[1754132608632,4.57396236,163.4,163.39,5.4364012]
[1754132609325,5.26396236,163.4,163.39,5.4364012]
[1754132610644,5.2645398,163.4,163.35,0.76]
[1754132610856,42.8,163.4,163.39,5.4364012]
[1754132611061,47.37470024,163.4,163.39,5.4364012]
[1754132611232,4.57470024,163.4,163.39,6.1364012]
[1754132611436,0.03,163.43,163.39,6.1364012]
[1754132611746,4.57441811,163.42,163.4,0.7]
[1754132611955,0.03,163.43,163.4,0.7]
[1754132612141,4.60387602,163.43,163.36,95.0364012]
[1754132612466,4.60387602,163.43,163.37,0.7]
[1754132612958,4.60387602,163.43,163.42,5.4364012]
[1754132613556,4.60387602,163.43,163.42,6.1364012]
[1754132613743,0.03,163.43,163.42,6.1364012]
[1754132614756,0.03,163.43,163.42,0.7]
[1754132615067,0.03,163.43,163.42,6.1364012]
[1754132615622,0.03,163.43,163.42,11.5728024]
[1754132615827,0.03,163.45,163.42,11.5728024]
[1754132616057,0.03,163.45,163.44,10.8728024]
[1754132616731,0.03,163.45,163.44,11.5728024]
[1754132616963,0.03,163.47,163.44,11.5728024]
[1754132617280,0.03,163.47,163.46,5.4364012]
[1754132617631,0.03,163.47,163.46,6.1364012]
[1754132619331,0.03,163.47,163.46,5.4364012]
[1754132621844,0.73,163.47,163.46,5.4364012]
[1754132622065,0.73,163.47,163.44,5.4364012]
[1754132622247,0.73,163.47,163.46,5.4364012]
[1754132623058,0.03,163.47,163.46,5.4364012]
[1754132623756,0.73,163.47,163.46,5.4364012]
[1754132625160,0.03,163.47,163.46,5.4364012]
[1754132630756,0.03,163.47,163.46,6.1364012]
[1754132633393,0.03,163.47,163.46,5.4364012]
[1754132635220,0.03,163.47,163.46,6.1364012]
[1754132636270,0.1,163.49,163.46,95.7364012]
[1754132636477,43.46,163.54,163.48,5.4364012]
[1754132636707,42.76,163.54,163.53,5.4364012]
[1754132636875,47.31302333,163.54,163.53,5.4364012]
[1754132637399,48.01302333,163.54,163.53,5.4364012]
[1754132639693,47.31302333,163.54,163.53,5.4364012]
[1754132639892,0.7,163.56,163.53,5.4364012]
[1754132640080,43.46,163.56,163.55,5.4364012]
[1754132640280,48.0113131,163.56,163.55,5.4364012]
[1754132640876,48.01146575,163.56,163.55,5.4364012]
[1754132641676,48.01146575,163.56,163.5,0.65]
[1754132641977,5.25146575,163.55,163.5,0.65]
[1754132642179,0.7,163.54,163.5,0.65]
[1754132642409,0.7,163.53,163.48,17.43468397]
[1754132642705,0.7,163.53,163.49,0.65]
[1754132643084,0.7,163.53,163.52,5.4364012]
[1754132643987,42.76,163.55,163.52,11.5228024]
[1754132644187,42.76,163.55,163.54,5.4364012]
[1754132646686,0.03,163.56,163.54,5.4364012]
[1754132646888,0.73,163.56,163.55,5.4364012]
[1754132647085,5.28113556,163.56,163.55,5.4364012]
[1754132648885,0.73,163.56,163.55,5.4364012]
[1754132649601,0.03,163.56,163.55,5.4364012]
[1754132651016,0.03,163.56,163.53,0.65]
[1754132651315,4.58557254,163.56,163.55,5.4364012]
[1754132651697,0.03,163.56,163.55,6.0864012]
[1754132652124,0.73,163.56,163.51,11.522803]
[1754132652304,0.03,163.56,163.55,5.4364012]
[1754132652989,0.73,163.56,163.55,5.4364012]
[1754132654322,0.03,163.56,163.55,5.4364012]
[1754132655017,0.03,163.56,163.55,6.0864012]
[1754132655599,0.03,163.56,163.55,5.4364012]
[1754132656323,0.03,163.56,163.55,6.0864012]
[1754132658211,4.55955591,163.6,163.55,6.0864012]
[1754132658409,0.7,163.61,163.59,5.4364012]
[1754132658609,0.7,163.61,163.6,5.4364012]
[1754132658811,5.26076641,163.61,163.6,5.4364012]
[1754132659704,4.56076641,163.61,163.6,5.4364012]
[1754132659905,4.56076641,163.61,163.6,10.8728024]
[1754132660509,4.56076641,163.61,163.6,11.5228024]
[1754132660916,4.56076641,163.61,163.6,10.8728024]
[1754132661504,4.56076641,163.61,163.6,11.5228024]
[1754132662439,0.1,163.64,163.6,11.5228024]
[1754132662732,0.1,163.64,163.63,5.4364012]
[1754132663034,4.65753165,163.64,163.63,5.4364012]
[1754132663194,0.1,163.64,163.63,5.4364012]
[1754132663839,0.8,163.64,163.63,5.4364012]
[1754132665544,0.8,163.64,163.57,17.43468397]
[1754132665714,4.55238454,163.63,163.55,43.37]
[1754132665913,0.7,163.62,163.61,5.4364012]
[1754132666153,0.7,163.62,163.55,74.806401]
[1754132666318,4.55242831,163.61,163.59,5.4364012]
[1754132666525,5.4364012,163.63,163.59,5.4364012]
[1754132666751,0.7,163.6,163.58,5.4364012]
[1754132666917,0.7,163.6,163.59,5.4364012]
[1754132669252,43.42,163.6,163.56,5.4364012]
[1754132669457,0.7,163.59,163.56,5.4364012]
[1754132670347,0.7,163.59,163.55,5.4364012]
[1754132670723,0.7,163.59,163.56,5.4364012]
[1754132671337,0.69,163.58,163.57,5.4364012]
[1754132671647,42.72,163.58,163.57,5.4364012]
[1754132671957,43.41,163.58,163.57,5.4364012]
[1754132675852,42.72,163.58,163.57,5.4364012]
[1754132676231,42.72,163.58,163.57,6.0964012]
[1754132676554,42.72,163.58,163.57,5.4364012]
[1754132677651,0.69,163.62,163.57,6.0964012]
[1754132677838,47.28339724,163.61,163.57,0.66]
[1754132678041,42.72,163.61,163.6,5.4364012]
[1754132678243,47.28442652,163.61,163.6,5.4364012]
[1754132678658,42.72,163.61,163.6,5.4364012]
[1754132679660,43.41,163.61,163.6,5.4364012]
[1754132679861,47.97513857,163.61,163.6,5.4364012]
[1754132681075,47.97513857,163.61,163.58,5.4364012]
[1754132681275,5.25513857,163.6,163.52,6.0964012]
[1754132681479,5.25873905,163.59,163.56,5.4364012]
[1754132681773,26.1,163.64,163.56,5.4364012]
[1754132681774,42.72,163.63,163.58,5.4364012]
[1754132681975,0.69,163.61,163.57,0.66]
[1754132682207,0.69,163.61,163.58,26.0]
[1754132682358,43.41,163.63,163.58,26.66]
[1754132682675,5.25846216,163.62,163.58,26.66]
[1754132682883,0.69,163.62,163.58,26.66]
[1754132683086,42.72,163.63,163.61,5.4364012]
[1754132683366,42.72,163.63,163.62,5.4364012]
[1754132683530,47.97877896,163.63,163.61,5.4364012]
[1754132683737,5.25877896,163.62,163.61,5.4364012]
[1754132686666,4.56877896,163.62,163.61,5.4364012]
[1754132687454,4.57046411,163.62,163.61,5.4364012]
[1754132688068,5.26046411,163.62,163.61,5.4364012]
[1754132690073,5.26046411,163.62,163.59,5.4364012]
[1754132690279,5.26046411,163.61,163.6,5.4364012]
[1754132690969,5.26046411,163.61,163.55,26.0]
[1754132691188,48.06046411,163.6,163.58,5.4364012]
[1754132691369,5.26046411,163.59,163.58,5.4364012]
[1754132694600,5.26046411,163.59,163.57,5.4364012]
[1754132694803,5.26046411,163.58,163.57,5.4364012]
[1754132695684,4.57046411,163.58,163.57,5.4364012]
[1754132697577,4.57046411,163.58,163.55,0.66]
[1754132697880,43.49,163.6,163.57,5.4364012]
[1754132698081,43.49,163.6,163.59,5.4364012]
[1754132698403,54.4790937,163.6,163.59,5.4364012]
[1754132700418,54.4790937,163.6,163.58,5.4364012]
[1754132700581,7.55863763,163.59,163.58,5.4364012]
[1754132701279,7.55994577,163.59,163.58,5.4364012]
[1754132702300,6.86994577,163.59,163.58,5.4364012]
[1754132703010,4.58008327,163.59,163.58,5.4364012]
[1754132704027,4.58008327,163.59,163.58,6.1364012]
[1754132704196,4.58008327,163.59,163.58,5.4364012]
[1754132704506,5.29008327,163.59,163.57,5.4364012]
[1754132704696,5.29008327,163.58,163.54,0.76]
[1754132705013,0.71,163.58,163.57,5.4364012]
[1754132705307,5.29006597,163.58,163.57,5.4364012]
[1754132706893,5.29006597,163.58,163.54,0.06]
[1754132707092,5.29006597,163.57,163.54,0.06]
[1754132707298,43.47,163.57,163.56,5.4364012]
[1754132707505,48.05000069,163.57,163.56,5.4364012]
[1754132708103,47.34000069,163.57,163.56,5.4364012]
[1754132709419,47.34000069,163.57,163.56,6.1364012]
[1754132709602,4.58000069,163.57,163.56,6.1364012]
[1754132711828,42.74,163.6,163.56,6.1364012]
[1754132712003,42.74,163.6,163.59,5.4364012]
[1754132712222,53.73846101,163.6,163.59,5.4364012]
[1754132713704,49.61416796,163.6,163.59,5.4364012]
[1754132714105,47.32277979,163.6,163.59,5.4364012]
[1754132715130,50.32420752,163.6,163.59,5.4364012]
[1754132717940,49.61420752,163.6,163.59,5.4364012]
[1754132719752,50.32420752,163.6,163.59,5.4364012]
[1754132720237,54.44993861,163.6,163.59,5.4364012]
[1754132720929,54.44993861,163.6,163.56,18.37616]
[1754132721124,7.58420752,163.59,163.56,18.37616]
[1754132721328,4.58277979,163.58,163.56,18.37616]
[1754132721512,0.71,163.59,163.56,18.37616]
[1754132721513,4.42150177,163.57,163.56,18.37616]
[1754132722145,42.74,163.6,163.56,19.07616]
[1754132722312,43.45,163.6,163.56,19.07616]
[1754132722511,42.74,163.6,163.59,5.4364012]
[1754132722713,49.15852229,163.6,163.59,5.4364012]
[1754132723112,49.86852229,163.6,163.59,5.4364012]
[1754132727345,2.29242988,163.6,163.59,5.4364012]
[1754132727531,45.03242988,163.6,163.59,5.4364012]
[1754132728041,42.74,163.61,163.59,23.8103102]
[1754132728242,42.74,163.61,163.59,18.373909]
[1754132728543,43.45,163.62,163.6,5.4364012]
[1754132728747,6.41969067,163.61,163.59,18.373909]
[1754132729047,4.12704337,163.61,163.59,19.073909]
[1754132729926,4.12704337,163.61,163.6,5.4364012]
[1754132730142,6.4199179,163.61,163.6,5.4364012]
[1754132731026,6.4199179,163.61,163.6,11.5728024]
[1754132731240,0.03,163.62,163.6,11.5728024]
[1754132731426,0.03,163.62,163.61,6.1364012]
[1754132731628,2.32246472,163.62,163.61,6.1364012]
[1754132732026,0.03,163.62,163.61,6.1364012]
[1754132733350,0.03,163.62,163.61,5.4364012]
[1754132733549,4.61395672,163.62,163.61,5.4364012]
[1754132734765,5.32395672,163.62,163.61,5.4364012]
[1754132734925,55.77188261,163.62,163.54,0.06]
[1754132735122,17.14761078,163.61,163.57,5.4364012]
[1754132735320,47.30395672,163.6,163.57,5.4364012]
[1754132735537,5.29395672,163.59,163.57,5.4364012]
[1754132735724,48.01395672,163.58,163.57,5.4364012]
[1754132739265,48.01395672,163.58,163.56,5.4364012]
[1754132739556,5.29395672,163.57,163.56,5.4364012]
[1754132740560,5.29395672,163.57,163.54,5.4964012]
[1754132740765,48.01395672,163.56,163.54,5.4964012]
[1754132740963,4.58395672,163.55,163.54,5.4964012]
[1754132741145,5.29395672,163.55,163.54,5.4964012]
[1754132741668,5.29395672,163.55,163.54,0.06]
[1754132742852,4.58395672,163.55,163.54,5.4964012]
[1754132743255,4.58395672,163.55,163.54,0.06]
[1754132743570,5.29395672,163.55,163.54,5.4964012]
[1754132745164,5.29395672,163.55,163.54,0.06]
[1754132745366,5.29395672,163.55,163.54,5.4964012]
[1754132747291,4.58395672,163.55,163.54,5.4964012]
[1754132749275,5.29395672,163.55,163.54,5.4964012]
[1754132749461,5.29395672,163.55,163.54,0.06]
[1754132749668,14.85071941,163.55,163.54,0.06]
[1754132749891,9.41431821,163.55,163.54,0.06]
[1754132750059,17.13971026,163.55,163.49,5.4364012]
[1754132750258,5.4364012,163.53,163.49,5.4364012]